bitfinex-derivatives/quotes_SOLF0:USTF0_20240902
["timestamp","ask_amount","ask_price","bid_price","bid_amount"]
[1725239502650,5.2735,129.83,129.81,0.05256235]
[1725239504944,1.4225,129.83,129.81,0.05256235]
[1725239506646,0.04906082,129.84,129.81,3.90406235]
[1725239506852,0.04906082,129.84,129.82,23.66]
[1725239507661,0.04906082,129.84,129.83,3.88854278]
[1725239507852,0.04906082,129.84,129.83,7.73944278]
[1725239509062,0.04906082,129.84,129.83,3.8509]
[1725239510264,0.04906082,129.84,129.83,7.64884143]
[1725239511858,0.04906082,129.84,129.83,3.8509]
[1725239512462,3.8502,129.86,129.83,3.8509]
[1725239513157,2.7693,129.92,129.85,27.5102]
[1725239513351,6.68706391,129.92,129.85,23.66]
[1725239513559,0.04954594,129.9,129.87,0.05676501]
[1725239513759,3.89854594,129.9,129.87,0.05676501]
[1725239513962,0.04954594,129.9,129.87,0.05676501]
[1725239514156,0.04954594,129.9,129.87,27.56636501]
[1725239514356,0.04954594,129.9,129.87,23.71676501]
[1725239514956,0.04954594,129.9,129.89,23.66]
[1725239515272,5.32327891,129.97,129.89,27.44070378]
[1725239515468,5.32327891,129.97,129.91,23.66]
[1725239515771,3.8473,129.96,129.91,27.5084]
[1725239516157,0.05809567,129.95,129.92,0.05081115]
[1725239516365,0.05304571,129.95,129.92,0.05164836]
[1725239516760,3.848,129.94,129.92,0.05164836]
[1725239517964,0.05304571,129.95,129.92,0.05164836]
[1725239518172,0.05304571,129.95,129.93,23.66]
[1725239518364,1.4059,129.99,129.94,3.90556453]
[1725239518667,2.8512,130.03,129.96,23.66]
[1725239518872,5.23121433,130.02,129.96,23.66]
[1725239519369,0.05743327,130.0,129.98,0.05052406]
[1725239519868,0.05743327,130.0,129.98,23.71052406]
[1725239520068,0.05743327,130.0,129.99,29.52]
[1725239520274,0.05743327,130.0,129.99,37.18995567]
[1725239520961,0.05743327,130.0,129.98,3.89702406]
[1725239521270,0.05743327,130.0,129.98,0.05052406]
[1725239521863,0.05743327,130.0,129.99,29.52]
[1725239522265,3.8446,130.05,130.01,3.8455]
[1725239522870,3.82325796,130.07,130.0,3.8458]
[1725239523072,4.2415,130.08,130.0,3.8458]
[1725239523370,0.04851629,130.05,130.02,0.04969391]
[1725239523773,3.89311629,130.05,130.02,0.04969391]
[1725239527077,0.04851629,130.05,130.02,0.04969391]
[1725239527270,0.04851629,130.05,130.03,3.8449]
[1725239527477,0.04851629,130.05,130.02,0.04969391]
[1725239527673,0.04851629,130.05,130.02,3.85650772]
[1725239527877,0.04851629,130.05,130.03,3.845]
[1725239528879,0.04851629,130.05,130.04,3.8447]
[1725239529070,2.6566,130.13,130.06,29.52]
[1725239529276,1.3273,130.13,130.06,29.52]
[1725239529575,3.8425,130.12,130.07,3.8437]
[1725239529880,2.6566,130.13,130.06,29.52]
[1725239530078,0.05028018,130.1,130.08,3.89351022]
[1725239530273,0.05028018,130.1,130.08,0.05021022]
[1725239530473,0.05028018,130.1,130.09,3.78575822]
[1725239530674,0.05028018,130.1,130.09,3.8433]
[1725239530878,0.05028018,130.1,130.09,7.63828615]
[1725239531076,0.05028018,130.1,130.09,3.8433]
[1725239531274,0.05028018,130.1,130.09,7.76901516]
[1725239532381,0.05028018,130.1,130.09,3.8433]
[1725239534187,0.05028018,130.1,130.08,0.05021022]
[1725239535178,3.89338018,130.1,130.08,0.05021022]
[1725239535482,0.05028018,130.1,130.08,0.05021022]
[1725239536671,3.89328018,130.1,130.08,0.05021022]
[1725239537282,0.05028018,130.1,130.08,0.05021022]
[1725239537970,3.89328018,130.1,130.08,0.05021022]
[1725239538780,3.8433,130.09,130.08,0.05021022]
[1725239539681,3.8433,130.09,130.04,37.15168685]
[1725239539876,3.8436,130.08,130.04,33.30708685]
[1725239540082,3.86702536,130.11,130.04,29.52]
[1725239540375,1.3743,130.12,130.04,29.52]
[1725239540576,3.8438,130.08,130.04,29.52]
[1725239540780,3.8438,130.08,130.07,0.05574129]
[1725239541380,3.90015345,130.09,130.07,0.05574129]
[1725239545282,3.8435,130.08,130.07,0.05574129]
[1725239546083,3.844,130.07,130.03,27.4449]
[1725239547074,3.92365649,130.11,130.03,27.4449]
[1725239547075,3.8444,130.05,130.04,0.0536196]
[1725239547684,3.90032248,130.06,130.04,0.0536196]
[1725239547988,0.05612248,130.06,130.04,0.0536196]
[1725239549079,3.90032248,130.06,130.04,0.0536196]
[1725239551289,0.05612248,130.06,130.04,0.0536196]
[1725239551986,0.05612248,130.06,130.05,23.6]
[1725239552485,1.3743,130.12,130.05,23.6]
[1725239552690,1.3743,130.12,130.07,23.6]
[1725239552994,1.3743,130.12,130.08,3.8433]
[1725239553493,0.05222701,130.11,130.09,0.05657581]
[1725239553689,0.05222701,130.11,130.09,27.49977581]
[1725239554496,0.05222701,130.11,130.09,23.65657581]
[1725239556192,0.05222701,130.11,130.09,0.05657581]
[1725239556402,0.05222701,130.11,130.09,23.65657581]
[1725239556592,0.05222701,130.11,130.09,27.49957581]
[1725239556787,0.05222701,130.11,130.09,23.65657581]
[1725239556994,0.05222701,130.11,130.1,23.6]
[1725239558198,0.05222701,130.11,130.1,27.443]
[1725239559297,0.05222701,130.11,130.1,31.32036284]
[1725239561793,5.2813,130.15,130.12,3.8423]
[1725239562494,5.2813,130.15,130.11,3.8425]
[1725239562900,0.05764658,130.14,130.12,0.0559242]
[1725239565299,0.05764658,130.14,130.12,3.8982242]
[1725239565497,0.05764658,130.14,130.12,23.6559242]
[1725239566093,0.05764658,130.14,130.13,7.65423983]
[1725239569301,0.05764658,130.14,130.12,27.4982242]
[1725239570406,0.05764658,130.14,130.13,3.8421]
[1725239570603,1.4648,130.19,130.13,23.6]
[1725239570802,1.3509,130.2,130.17,23.6]
[1725239571017,1.3509,130.2,130.17,27.4408]
[1725239571304,3.8002305,130.23,130.19,23.6]
[1725239571806,0.05057744,130.22,130.2,0.05187748]
[1725239572300,0.05057744,130.22,130.2,3.82060587]
[1725239572904,0.05057744,130.22,130.2,7.66050587]
[1725239574711,0.05057744,130.22,130.2,0.05187748]
[1725239575711,0.05057744,130.22,130.2,3.89177748]
[1725239576412,0.05057744,130.22,130.21,23.6]
[1725239577213,0.05057744,130.22,130.2,0.05187748]
[1725239580607,3.8397,130.21,130.2,0.05187748]
[1725239581012,3.89007744,130.22,130.2,0.05187748]
[1725239581309,0.05057744,130.22,130.15,3.7487522]
[1725239581514,3.84,130.2,130.15,23.6]
[1725239581714,3.84,130.2,130.15,31.37563179]
[1725239581912,23.6,130.25,130.12,94.09333488]
[1725239582106,3.8414,130.16,130.12,23.6]
[1725239582313,0.05511966,130.15,130.13,0.05239045]
[1725239582609,1.4033,130.19,130.14,31.22597818]
[1725239582803,346.80145929,130.24,130.16,23.6]
[1725239583002,1.4033,130.23,130.13,27.412596]
[1725239583213,3.8394,130.22,130.18,23.6]
[1725239583707,0.05604078,130.21,130.19,0.05828997]
[1725239584914,0.05604078,130.21,130.2,31.19912128]
[1725239585212,3.8383,130.26,130.2,31.19912128]
[1725239585213,3.83285966,130.26,130.21,3.89814885]
[1725239585510,3.83285966,130.26,130.2,23.6]
[1725239585714,3.83285966,130.26,130.2,27.4398]
[1725239585715,3.8387,130.25,130.2,27.4398]
[1725239586113,0.05780846,130.24,130.21,0.05620175]
[1725239587211,0.05780846,130.24,130.21,7.72182511]
[1725239588115,0.05780846,130.24,130.21,0.05620175]
[1725239588614,3.89680846,130.24,130.21,0.05620175]
[1725239589913,0.05780846,130.24,130.21,0.05620175]
[1725239591310,3.89670846,130.24,130.21,0.05620175]
[1725239591519,0.05780846,130.24,130.22,23.6]
[1725239592611,0.05780846,130.24,130.21,0.05620175]
[1725239592612,1.461,130.29,130.23,23.6]
[1725239592823,1.461,130.29,130.26,23.6]
[1725239593010,1.461,130.29,130.26,27.4361738]
[1725239593210,1.461,130.29,130.26,23.6]
[1725239593505,1.461,130.29,130.26,27.4381]
[1725239593708,0.05287653,130.29,130.26,27.46445175]
[1725239593907,0.05287653,130.29,130.27,23.6]
[1725239594109,0.05287653,130.29,130.28,3.8376]
[1725239594318,0.05287653,130.29,130.27,23.6]
[1725239594719,0.05287653,130.29,130.27,27.4379]
[1725239595617,0.05287653,130.29,130.26,23.65322805]
[1725239596015,0.05287653,130.29,130.26,0.05322805]
[1725239597119,0.05287653,130.29,130.22,23.6]
[1725239597315,1.419,130.31,130.22,23.6]
[1725239597515,3.8383,130.26,130.22,23.6]
[1725239598121,0.05094068,130.25,130.23,0.0533193]
[1725239599525,3.8388,130.24,130.23,0.0533193]
[1725239604229,3.8394,130.22,130.2,23.6]
[1725239604431,3.81402134,130.25,130.2,23.6]
[1725239604622,2.7634,130.27,130.2,23.6]
[1725239605320,2.7634,130.27,130.22,0.05301362]
[1725239605321,3.8391,130.23,130.22,0.05301362]
[1725239606427,3.78868156,130.24,130.17,23.6]
[1725239606733,23.6,130.23,130.13,23.6]
[1725239606930,23.6,130.21,130.13,23.6]
[1725239607230,3.8417,130.15,130.13,23.6]
[1725239607522,3.89901153,130.15,130.13,23.65626423]
[1725239607726,3.8418,130.14,130.13,23.65626423]
[1725239608318,3.8418,130.14,130.13,0.05626423]
[1725239609528,0.05731153,130.15,130.13,23.65626423]
[1725239610324,0.05731153,130.15,130.13,0.05626423]
[1725239610628,3.8418,130.14,130.13,0.05626423]
[1725239610836,3.92277326,130.14,130.08,23.6]
[1725239611132,5.25717326,130.14,130.08,23.6]
[1725239611325,1.3344,130.14,130.06,23.6]
[1725239611530,5.20051187,130.13,130.06,23.6]
[1725239611917,3.8431,130.1,130.08,0.0530665]
[1725239612124,0.05504086,130.11,130.08,0.0530665]
[1725239612428,23.6,130.12,130.02,27.51275941]
[1725239612630,23.6,130.12,130.04,23.6]
[1725239612832,5.20051187,130.13,130.06,23.6]
[1725239613332,0.05274822,130.11,130.08,0.05796311]
[1725239613537,0.05249864,130.11,130.08,0.04921386]
[1725239614529,3.8433,130.09,130.08,0.04921386]
[1725239614726,23.6,130.12,130.02,23.6]
[1725239614932,23.6,130.1,130.0,27.39400461]
[1725239615236,23.6,130.08,130.0,27.39400461]
[1725239615435,1.3469,130.07,130.0,27.39400461]
[1725239615632,3.90223773,130.05,130.02,0.05199093]
[1725239615936,0.05753773,130.05,130.02,0.05199093]
[1725239616136,3.85274809,130.04,130.02,0.05199093]
[1725239616934,3.845,130.03,130.02,0.05199093]
[1725239617232,0.05753773,130.05,130.02,0.05199093]
[1725239618135,3.90213773,130.05,130.02,0.05199093]
[1725239618336,0.05753773,130.05,130.02,0.05199093]
[1725239618827,0.05753773,130.05,130.02,23.65199093]
[1725239619035,0.05753773,130.05,130.03,23.6]
[1725239619431,0.05753773,130.05,130.04,3.8447]
[1725239619632,0.05753773,130.05,130.02,23.65199093]
[1725239620230,0.05753773,130.05,130.02,0.05199093]
[1725239622646,0.05753773,130.05,130.04,23.6]
[1725239624444,0.05753773,130.05,130.04,27.4447]
[1725239624638,2.8403,130.11,130.04,23.6]
[1725239624844,2.8403,130.11,130.05,23.6]
[1725239625236,2.8403,130.11,130.06,3.87001306]
[1725239625446,3.86131187,130.13,130.07,23.6]
[1725239625647,0.05051683,130.11,130.09,0.05302123]
[1725239625843,0.05051683,130.11,130.09,3.89612123]
[1725239626343,0.05051683,130.11,130.09,0.05302123]
[1725239626948,7.75746465,130.11,130.09,0.05302123]
[1725239627158,0.05051683,130.11,130.09,0.05302123]
[1725239629265,3.89341683,130.11,130.09,0.05302123]
[1725239629748,3.843,130.1,130.09,0.05302123]
[1725239630141,3.8443,130.06,129.97,1.3316]
[1725239630344,3.8443,130.06,130.0,23.6]
[1725239631155,0.05305372,130.04,130.02,0.05580118]
[1725239632648,0.05305372,130.04,130.02,3.90110118]
[1725239632853,0.05305372,130.04,130.02,0.05580118]
[1725239634153,0.05305372,130.04,130.02,3.90080118]
[1725239635856,0.05305372,130.04,130.02,0.05580118]
[1725239636550,0.05305372,130.04,130.02,3.90100118]
[1725239636758,0.05305372,130.04,130.02,0.05580118]
[1725239636965,0.05305372,130.04,130.03,3.845]
[1725239640356,0.05305372,130.04,130.02,0.05580118]
[1725239640764,3.89805372,130.04,130.02,0.05580118]
[1725239641062,0.05305372,130.04,130.02,0.05580118]
[1725239641465,3.89795372,130.04,130.02,0.05580118]
[1725239641653,0.05305372,130.04,130.02,0.05580118]
[1725239642267,3.845,130.03,130.02,0.05580118]
[1725239644663,3.89795372,130.04,130.02,0.05580118]
[1725239645367,3.845,130.03,130.02,0.05580118]
[1725239654357,3.89785372,130.04,130.02,0.05580118]
[1725239654561,0.05305372,130.04,130.02,0.05580118]
[1725239655072,3.89805372,130.04,130.02,0.05580118]
[1725239657376,23.62,130.03,129.94,24.9839]
[1725239657668,3.90610581,130.02,129.94,24.9839]
[1725239658064,7.75160581,130.02,129.97,3.8466]
[1725239658373,0.05221944,130.01,129.98,0.05317207]
[1725239659273,0.05221944,130.01,129.98,3.89957207]
[1725239659881,0.05221944,130.01,129.99,3.8461]
[1725239660173,0.05221944,130.01,129.98,0.05317207]
[1725239661276,0.05221944,130.01,130.0,3.8459]
[1725239661480,0.05221944,130.01,129.98,23.67317207]
[1725239661666,0.05221944,130.01,129.98,0.05317207]
[1725239662472,0.05221944,130.01,129.98,3.89957207]
[1725239662777,0.05221944,130.01,129.98,0.05317207]
[1725239662963,0.05221944,130.01,129.99,3.8459]
[1725239663476,0.05221944,130.01,129.98,0.05317207]
[1725239664066,3.846,130.0,129.98,0.05317207]
[1725239664269,0.05221944,130.01,129.98,0.05317207]
[1725239664467,3.8462,129.99,129.98,0.05317207]
[1725239664679,24.9991,130.01,129.93,3.8479]
[1725239664880,24.9991,130.01,129.93,3.84219026]
[1725239665177,24.9991,130.01,129.94,3.8476]
[1725239665579,3.89663269,129.99,129.96,0.05645498]
[1725239666281,23.67023269,129.99,129.96,0.05645498]
[1725239666792,3.8468,129.97,129.96,0.05645498]
[1725239667374,3.8468,129.97,129.92,3.8482]
[1725239668275,0.0513166,129.96,129.93,0.05609571]
[1725239668477,3.8985166,129.96,129.93,0.05609571]
[1725239668784,0.0513166,129.96,129.93,0.05609571]
[1725239669970,0.0513166,129.96,129.93,3.90399571]
[1725239670278,0.0513166,129.96,129.93,0.05609571]
[1725239670476,3.8986166,129.96,129.93,0.05609571]
[1725239674292,0.0513166,129.96,129.93,0.05609571]
[1725239674475,0.0513166,129.96,129.93,3.84649841]
[1725239674687,0.0513166,129.96,129.93,0.05609571]
[1725239674978,0.0513166,129.96,129.93,3.99075914]
[1725239675282,0.0513166,129.96,129.95,3.8474]
[1725239677580,0.0513166,129.96,129.95,7.74047692]
[1725239677881,0.0513166,129.96,129.95,3.8474]
[1725239678074,0.0513166,129.96,129.95,7.7750923]
[1725239678275,1.394,130.02,129.95,3.9276923]
[1725239678486,225.0,130.04,129.96,23.62]
[1725239679192,0.05828031,130.01,129.99,0.05085419]
[1725239679382,0.05828031,130.01,130.0,3.8457]
[1725239679778,0.05828031,130.01,129.99,3.89695419]
[1725239683682,0.05828031,130.01,130.0,3.8459]
[1725239686296,0.05828031,130.01,129.99,3.89685419]
[1725239690689,0.05828031,130.01,129.99,0.05085419]
[1725239691393,3.90398031,130.01,129.99,0.05085419]
[1725239692289,3.8459,130.0,129.99,0.05085419]
[1725239692592,0.05828031,130.01,129.99,0.05085419]
[1725239693492,3.90408031,130.01,129.99,0.05085419]
[1725239695085,0.05828031,130.01,129.99,0.05085419]
[1725239695487,0.05828031,130.01,130.0,3.8459]
[1725239696288,287.78193607,130.18,130.0,3.8459]
[1725239696289,43.55251231,130.17,130.0,23.62]
[1725239696597,23.62,130.09,130.0,23.62]
[1725239696894,3.80604864,130.08,130.04,3.8445]
[1725239697190,23.62,130.06,130.05,0.05590273]
[1725239697395,23.62,130.06,130.04,0.05251578]
[1725239697691,2.87105553,130.06,130.04,0.04953687]
[1725239698292,6.71525553,130.06,130.04,0.04953687]
[1725239698982,2.87105553,130.06,130.04,0.04953687]
[1725239700501,1.50965553,130.06,130.04,0.04953687]
[1725239702813,0.05195553,130.06,130.04,0.04953687]
[1725239703294,0.05195553,130.06,130.04,3.89413687]
[1725239704092,0.05195553,130.06,130.05,3.8444]
[1725239704700,1.3783,130.11,130.09,3.8431]
[1725239705000,3.76788397,130.13,130.09,3.8431]
[1725239705201,24.9471,130.15,130.09,3.8431]
[1725239705390,3.8419,130.14,130.1,3.8429]
[1725239705588,3.8419,130.14,130.11,0.04882854]
[1725239705890,23.62,130.12,130.01,7.66927805]
[1725239706095,23.62,130.09,130.0,23.62]
[1725239706402,3.89794036,130.08,130.0,27.39267138]
[1725239706603,7.74164036,130.08,130.03,3.845]
[1725239706899,0.05768493,130.07,130.04,0.05507777]
[1725239708092,0.05768493,130.07,130.05,3.8443]
[1725239710704,0.05768493,130.07,130.06,3.8441]
[1725239711199,0.05768493,130.07,130.04,3.89977777]
[1725239711402,0.05768493,130.07,130.04,0.05507777]
[1725239711899,3.90158493,130.07,130.04,0.05507777]
[1725239712801,3.8441,130.06,130.04,0.05507777]
[1725239713597,0.05768493,130.07,130.04,0.05507777]
[1725239713991,23.67768493,130.07,130.04,0.05507777]
[1725239714395,3.8444,130.05,130.04,0.05507777]
[1725239715399,2.8234,130.06,129.99,3.8462]
[1725239715594,2.8234,130.06,129.95,23.62]
[1725239715595,23.62,130.05,129.95,23.62]
[1725239715791,3.8455,130.02,129.95,23.62]
[1725239716405,0.05164201,130.0,129.97,0.04917578]
[1725239716719,0.05164201,130.0,129.97,0.05878178]
[1725239717394,0.05164201,130.0,129.98,23.62]
[1725239717600,0.05164201,130.0,129.99,7.59783398]
[1725239719812,1.3925,130.08,129.99,3.75163398]
[1725239720115,1.3925,130.08,130.02,23.62]
[1725239720616,3.844,130.07,130.02,23.62]
[1725239720818,0.05566083,130.06,130.03,0.05341017]
[1725239721912,3.8447,130.04,130.03,0.05341017]
[1725239722113,0.05566083,130.06,130.03,0.05341017]
[1725239722508,3.8446,130.05,130.03,0.05341017]
[1725239723314,3.89996083,130.06,130.03,0.05341017]
[1725239725412,0.05566083,130.06,130.03,0.05341017]
[1725239725917,0.05566083,130.06,130.04,3.8445]
[1725239729014,0.05566083,130.06,130.05,3.8444]
[1725239732109,0.05566083,130.06,130.05,27.4644]
[1725239733513,1.3559,130.12,130.09,3.8431]
[1725239734120,5.2778,130.13,130.09,3.8431]
[1725239734422,0.05871457,130.12,130.1,0.05390345]
[1725239734816,3.90111457,130.12,130.1,0.05390345]
[1725239735017,0.05871457,130.12,130.11,3.8427]
[1725239736127,23.62,130.2,130.11,23.62]
[1725239736429,23.62,130.22,130.13,23.62]
[1725239736623,3.8403,130.19,130.15,3.8414]
[1725239737025,3.8403,130.19,130.13,23.62]
[1725239737222,0.0584328,130.17,130.15,0.05627891]
[1725239737529,0.0584328,130.17,130.16,3.8412]
[1725239737720,0.0584328,130.17,130.15,0.05627891]
[1725239738229,0.0584328,130.17,130.15,3.89767891]
[1725239739028,0.0584328,130.17,130.15,0.05627891]
[1725239740025,3.8994328,130.17,130.15,0.05627891]
[1725239742033,3.8412,130.16,130.15,0.05627891]
[1725239743120,0.0584328,130.17,130.15,0.05627891]
[1725239744935,0.0584328,130.17,130.15,23.67627891]
[1725239745231,4.2289,130.24,130.16,23.62]
[1725239745430,3.8395,130.22,130.19,3.8401]
[1725239745934,3.8395,130.22,130.18,3.8404]
[1725239746433,0.0509475,130.21,130.19,0.04863404]
[1725239746835,0.0509475,130.21,130.19,3.86796112]
[1725239747530,0.0509475,130.21,130.19,7.70816112]
[1725239749237,0.0509475,130.21,130.19,3.88883404]
[1725239749938,0.0509475,130.21,130.19,7.76526442]
[1725239755135,0.0509475,130.21,130.19,0.04863404]
[1725239757437,0.0509475,130.21,130.19,3.88883404]
[1725239759242,0.0509475,130.21,130.19,0.04863404]
[1725239759744,0.0509475,130.21,130.19,3.96892278]
[1725239759940,0.0509475,130.21,130.19,7.80922278]
[1725239760443,0.0509475,130.21,130.19,0.04863404]
[1725239760948,0.0509475,130.21,130.15,23.62]
[1725239761138,3.8409,130.18,130.15,23.62]
[1725239761334,1.4455,130.2,130.15,23.62]
[1725239761742,3.8405,130.19,130.15,27.4612]
[1725239761940,3.8405,130.19,130.16,0.05662628]
[1725239762241,0.05117406,130.18,130.16,0.05662628]
[1725239762438,3.89177406,130.18,130.16,0.05662628]
[1725239764752,0.05117406,130.18,130.16,0.05662628]
[1725239764957,0.05117406,130.18,130.16,23.67662628]
[1725239766546,0.05117406,130.18,130.16,0.05662628]
[1725239767340,3.89197406,130.18,130.16,0.05662628]
[1725239767551,0.05117406,130.18,130.08,1.3776]
[1725239767748,25.0655,130.2,130.08,1.3776]
[1725239767749,25.0655,130.2,130.1,23.62]
[1725239768257,25.0655,130.2,130.12,23.62]
[1725239768449,3.8414,130.16,130.12,23.62]
[1725239768748,3.8414,130.16,130.15,0.05747008]
[1725239770659,3.92260716,130.17,130.15,23.67747008]
[1725239770660,0.05296513,130.17,130.15,23.67747008]
[1725239770958,1.4262,130.21,130.15,27.57604864]
[1725239771151,1.4262,130.21,130.18,23.62]
[1725239771545,2.7788,130.23,130.18,23.62]
[1725239771745,2.7788,130.23,130.19,0.05382646]
[1725239771959,0.0528521,130.22,130.19,0.05382646]
[1725239772453,0.0528521,130.22,130.19,23.67382646]
[1725239772851,0.0528521,130.22,130.2,3.8398]
[1725239775649,0.0528521,130.22,130.19,0.05382646]
[1725239776050,3.8397,130.21,130.19,0.05382646]
[1725239776260,0.0528521,130.22,130.19,0.05382646]
[1725239778563,0.0528521,130.22,130.2,3.8398]
[1725239779852,0.0528521,130.22,130.21,3.8397]
[1725239780566,0.0528521,130.22,130.19,3.89382646]
[1725239780864,0.0528521,130.22,130.19,0.05382646]
[1725239781560,1.3825521,130.22,130.19,0.05382646]
[1725239781965,1.3825521,130.22,130.19,3.89382646]
[1725239782663,1.3825521,130.22,130.2,3.84]
[1725239784359,0.0528521,130.22,130.21,3.8397]
[1725239784558,0.0528521,130.22,130.19,23.67382646]
[1725239784865,0.0528521,130.22,130.19,0.05382646]
[1725239785970,0.0528521,130.22,130.19,3.89392646]
[1725239786270,0.0528521,130.22,130.19,0.05382646]
[1725239786784,0.0528521,130.22,130.2,3.8398]
[1725239787570,0.0528521,130.22,130.19,3.89402646]
[1725239788664,0.0528521,130.22,130.19,0.05382646]
[1725239788866,9.44,130.21,130.14,9.44]
[1725239789070,9.44,130.2,130.06,37.76]
[1725239789269,3.8411,130.17,130.13,9.44]
[1725239789469,3.92787689,130.17,130.13,9.44]
[1725239789671,9.44,130.2,130.13,9.44]
[1725239789976,0.05678259,130.18,130.15,0.05247312]
[1725239790175,3.80769844,130.17,130.15,0.05247312]
[1725239790762,0.05678259,130.18,130.15,0.05247312]
[1725239791367,3.90791114,130.17,130.15,0.05247312]
[1725239791566,0.05678259,130.18,130.15,0.05247312]
[1725239791773,7.59850012,130.17,130.15,0.05247312]
[1725239792873,3.8411,130.17,130.15,0.05247312]
[1725239793273,7.81562831,130.18,130.15,0.05247312]
[1725239793479,3.89768259,130.18,130.15,0.05247312]
[1725239793773,3.97856906,130.18,130.15,0.05247312]
[1725239793984,3.8411,130.17,130.15,0.05247312]
[1725239794275,23.61,130.17,130.09,23.61]
[1725239794580,1.3696,130.16,130.09,23.61]
[1725239794773,1.3696,130.16,130.09,27.44306522]
[1725239794982,3.8419,130.14,130.1,3.8428]
[1725239795281,0.05246132,130.13,130.11,0.05188016]
[1725239795467,0.05246132,130.13,130.11,23.66188016]
[1725239796277,0.05246132,130.13,130.12,3.8424]
[1725239797978,0.05246132,130.13,130.12,27.4524]
[1725239798167,1.401,130.2,130.13,3.84095278]
[1725239798168,5.19239953,130.2,130.13,3.84095278]
[1725239798582,3.8408,130.18,130.14,3.8416]
[1725239799173,0.05747118,130.17,130.15,0.05790512]
[1725239801082,0.05747118,130.17,130.15,3.89940512]
[1725239801484,0.05747118,130.17,130.15,0.05790512]
[1725239802381,0.05747118,130.17,130.16,3.8412]
[1725239803687,0.05747118,130.17,130.16,7.60589993]
[1725239807188,5.1989,130.22,130.19,3.8402]
[1725239807581,5.1989,130.22,130.17,23.61]
[1725239807887,5.1989,130.22,130.18,3.8403]
[1725239808392,0.05214639,130.21,130.19,0.05625618]
[1725239808582,0.05214639,130.21,130.19,3.89635618]
[1725239812884,0.05214639,130.21,130.2,13.28]
[1725239813188,0.05214639,130.21,130.19,3.83140592]
[1725239813393,0.05214639,130.21,130.19,0.05625618]
[1725239814495,9.49214639,130.21,130.19,0.05625618]
[1725239814695,9.44,130.21,130.14,9.44]
[1725239814892,12.1943,130.2,130.12,88.89790502]
[1725239815096,9.44,130.18,130.13,9.44]
[1725239815401,13.24001535,130.18,130.13,9.44]
[1725239815593,3.8411,130.17,130.13,13.282]
[1725239815794,0.05738563,130.17,130.14,0.05689454]
[1725239816294,3.89838563,130.17,130.14,0.05689454]
[1725239819294,0.05738563,130.17,130.14,0.05689454]
[1725239819697,9.49738563,130.17,130.14,0.05689454]
[1725239819901,3.8415,130.15,130.14,0.05689454]
[1725239821402,10.94728563,130.17,130.06,9.44]
[1725239821403,9.44,130.13,130.06,9.44]
[1725239821609,9.44,130.12,130.06,9.44]
[1725239821807,2.7974,130.14,130.07,9.44]
[1725239822106,2.7974,130.14,130.09,9.44]
[1725239822309,0.05518698,130.13,130.1,0.05781525]
[1725239822505,3.8429,130.11,130.1,0.05874436]
[1725239823903,3.843,130.1,130.06,9.44]
[1725239824307,3.85179778,130.11,130.06,9.44]
[1725239824702,0.05562946,130.1,130.07,0.04851957]
[1725239825106,0.05562946,130.1,130.09,9.44]
[1725239826298,0.05562946,130.1,130.09,13.2833]
[1725239827811,5.167,130.16,130.09,9.44]
[1725239828011,1.3258,130.16,130.08,1.4183]
[1725239828215,1.3258,130.16,130.11,9.44]
[1725239828812,0.05789344,130.15,130.12,0.05551615]
[1725239829302,0.05789344,130.15,130.12,9.49551615]
[1725239829811,0.05789344,130.15,130.12,13.33781615]
[1725239831517,0.05789344,130.15,130.13,9.44]
[1725239832003,0.05789344,130.15,130.14,3.8418]
[1725239835813,0.05789344,130.15,130.13,9.44]
[1725239836005,0.05789344,130.15,130.12,0.05551615]
[1725239836409,3.842,130.14,130.12,0.05551615]
[1725239839824,3.89959344,130.15,130.12,0.05551615]
[1725239840318,0.05789344,130.15,130.13,9.44]
[1725239840918,0.05789344,130.15,130.14,9.44]
[1725239841512,0.05789344,130.15,130.14,13.2818]
[1725239842114,0.05789344,130.15,130.14,9.44]
[1725239843812,1.3487,130.22,130.15,3.86417761]
[1725239844017,1.3487,130.22,130.17,9.44]
[1725239844712,0.04997422,130.21,130.18,3.88909255]
[1725239844918,0.04997422,130.21,130.18,13.32909255]
[1725239845217,0.04997422,130.21,130.18,9.48869255]
[1725239846016,0.04997422,130.21,130.18,0.04869255]